bitfinex-derivatives/quotes_ETHF0:USTF0_20250105
["timestamp","ask_amount","ask_price","bid_price","bid_amount"]
[1736095153292,1.24901,3631.3,3631.0,1.24943562]
[1736095153691,0.24792,3631.1,3630.9,2.08951562]
[1736095153991,1.00151562,3631.0,3630.6,1.088]
[1736095154187,1.00151562,3631.0,3630.6,1.00151562]
[1736095154402,1.00151562,3630.7,3630.1,7.228]
[1736095154596,1.24947562,3630.5,3630.3,1.088]
[1736095154789,1.6966,3630.6,3630.4,1.00151562]
[1736095155098,4.20931562,3631.3,3630.4,1.00151562]
[1736095155284,4.45722562,3631.3,3631.0,1.00151562]
[1736095155690,3.2078,3631.3,3631.2,1.00151562]
[1736095155897,3.2078,3631.3,3631.2,1.24942562]
[1736095156987,3.2078,3631.3,3631.1,0.8495]
[1736095157392,3.4557,3631.3,3631.1,0.8495]
[1736095157583,3.2078,3631.3,3630.4,2.21939357]
[1736095157784,0.24794,3630.8,3630.5,2.19115]
[1736095157983,1.11545,3630.7,3630.5,1.9432]
[1736095158894,0.8675,3630.7,3630.5,2.19115]
[1736095159888,0.9082,3630.6,3630.5,2.19115]
[1736095160394,0.9082,3630.6,3630.5,1.9432]
[1736095161395,1.15615,3630.6,3630.3,0.24797]
[1736095161599,0.9082,3630.6,3630.4,0.24796]
[1736095162599,1.15615,3630.6,3630.4,0.24796]
[1736095163001,0.9082,3630.6,3630.4,0.24796]
[1736095163194,1.15615,3630.6,3630.3,1.33697]
[1736095163395,0.9082,3630.6,3630.3,1.089]
[1736095163592,0.9082,3630.6,3630.4,0.24796]
[1736095163994,3.45574,3630.9,3630.6,0.24795]
[1736095164298,0.24793,3631.0,3630.7,0.24794]
[1736095165099,0.8716,3630.9,3630.7,0.24794]
[1736095165296,0.8716,3630.9,3630.8,0.24794]
[1736095165497,0.8716,3630.9,3630.7,0.24794]
[1736095165906,1.11953,3630.9,3630.7,0.24794]
[1736095166907,0.8716,3630.9,3630.7,0.24794]
[1736095167608,1.11953,3630.9,3630.7,0.24794]
[1736095169008,1.11953,3630.9,3630.6,1.7088]
[1736095169209,1.11953,3630.9,3630.6,1.95675]
[1736095170401,1.11953,3630.9,3630.7,0.24794]
[1736095173018,0.8716,3630.9,3630.8,0.24794]
[1736095173610,0.8716,3630.9,3630.6,1.7088]
[1736095173905,0.8716,3630.9,3630.7,0.24794]
[1736095175910,0.8716,3630.9,3630.6,1.7088]
[1736095176106,1.11953,3630.9,3630.6,1.95675]
[1736095176811,0.8716,3630.9,3630.7,0.24794]
[1736095177608,1.11953,3630.9,3630.6,1.95675]
[1736095179112,1.11953,3630.9,3630.8,1.00173041]
[1736095179711,0.8716,3630.9,3630.8,1.00173041]
[1736095181009,0.8716,3630.9,3630.8,1.24967041]
[1736095188112,0.8716,3630.9,3630.8,1.00173041]
[1736095189517,0.8716,3630.9,3630.6,1.7088]
[1736095189717,0.24795,3630.7,3630.5,8.5775967]
[1736095190617,0.24795,3630.6,3630.5,8.5775967]
[1736095191217,0.24795,3630.6,3630.5,7.4885967]
[1736095191613,0.24795,3630.6,3630.5,1.00173041]
[1736095192513,0.24794,3630.7,3630.5,1.00173041]
[1736095193321,0.24794,3630.7,3630.3,6.48686629]
[1736095193322,1.00173041,3630.7,3630.3,6.48686629]
[1736095193525,0.24796,3630.4,3630.3,6.48686629]
[1736095194023,2.05836,3630.4,3630.3,6.48686629]
[1736095194812,2.47175624,3630.4,3630.3,6.48686629]
[1736095195016,0.24799,3630.1,3629.9,7.4885967]
[1736095195218,0.934,3630.0,3629.9,7.4885967]
[1736095196423,0.934,3630.0,3629.9,1.00173041]
[1736095197013,0.934,3630.0,3629.9,1.24973041]
[1736095198226,4.42606697,3630.3,3630.0,0.24799]
[1736095198522,4.42606697,3630.3,3630.2,1.00173041]
[1736095198723,1.18197,3630.3,3630.2,1.00173041]
[1736095199926,4.42606697,3630.3,3630.2,1.00173041]
[1736095200520,3.24409697,3630.3,3630.2,1.24971041]
[1736095201528,0.9145,3630.4,3630.3,0.24797]
[1736095201723,0.9145,3630.4,3630.3,1.09867]
[1736095201922,0.9145,3630.4,3630.3,2.02557]
[1736095202217,3.24409697,3630.5,3630.4,0.24796]
[1736095202524,3.24409697,3630.5,3630.4,2.33769041]
[1736095202829,3.24409697,3630.5,3630.4,1.088]
[1736095203020,0.8824,3630.6,3630.4,1.088]
[1736095203327,0.8824,3630.6,3630.4,1.33596]
[1736095203827,0.24796,3630.5,3630.4,1.088]
[1736095204025,0.24797,3630.4,3630.2,6.48686629]
[1736095204326,1.17507,3630.4,3630.2,6.48686629]
[1736095204728,0.9271,3630.4,3630.2,6.48686629]
[1736095205430,1.17506,3630.4,3630.2,6.48686629]
[1736095205632,0.9271,3630.4,3630.2,6.48686629]
[1736095205831,4.17119697,3630.4,3630.3,0.24797]
[1736095206822,3.24409697,3630.4,3630.3,0.24797]
[1736095207330,3.24409697,3630.5,3630.4,0.24796]
[1736095208619,3.24409697,3630.8,3630.5,0.24795]
[1736095209121,3.45575,3630.7,3630.3,6.73482629]
[1736095209633,3.45575,3630.7,3630.4,0.24796]
[1736095209634,4.15349697,3630.6,3630.4,0.24796]
[1736095209931,0.8755,3630.5,3630.4,0.24796]
[1736095214335,0.8755,3630.5,3630.4,1.33596]
[1736095216533,0.9094,3630.6,3630.5,0.24796]
[1736095217131,0.9094,3630.6,3630.4,3.55611816]
[1736095219039,0.9094,3630.6,3630.4,3.30815816]
[1736095219235,1.15735,3630.6,3630.4,3.30815816]
[1736095219436,0.9094,3630.6,3630.4,1.088]
[1736095219638,0.24796,3630.4,3630.2,6.48686629]
[1736095219835,0.24796,3630.4,3630.2,7.57486629]
[1736095220636,0.9071,3630.5,3630.2,6.48686629]
[1736095220845,0.24796,3630.4,3630.2,6.48686629]
[1736095221139,0.24796,3630.4,3630.1,10.04300445]
[1736095222440,1.15506,3630.5,3630.2,4.40302797]
[1736095222743,0.9071,3630.5,3630.3,0.24797]
[1736095223341,0.9071,3630.5,3630.2,5.00325797]
[1736095223536,4.15349697,3630.6,3630.4,2.22015816]
[1736095223748,4.15349697,3630.6,3630.4,2.46811816]
[1736095223941,4.15349697,3630.6,3630.4,2.22015816]
[1736095224143,4.15349697,3630.6,3630.5,0.24796]
[1736095224641,4.15349697,3630.6,3630.4,2.46811816]
[1736095225343,4.15349697,3630.6,3630.4,0.24796]
[1736095225545,3.07203392,3630.6,3630.4,0.24796]
[1736095226238,3.07203392,3630.6,3630.3,6.73483629]
[1736095226545,3.07203392,3630.6,3630.4,0.24796]
[1736095226940,2.16263392,3630.5,3630.4,0.24796]
[1736095227133,2.16263392,3630.5,3630.4,1.24985188]
[1736095229444,2.16263392,3630.5,3630.4,1.00189188]
[1736095229642,2.16263392,3630.5,3630.4,2.08989188]
[1736095229839,2.16263392,3630.5,3630.4,2.33785188]
[1736095232447,4.15349697,3630.6,3630.4,2.33785188]
[1736095233851,4.15349697,3630.6,3630.4,2.08989188]
[1736095235143,4.15349697,3630.6,3630.4,2.33785188]
[1736095236845,3.24672787,3630.5,3630.4,2.33785188]
[1736095237041,3.24672787,3630.5,3630.4,6.2478343]
[1736095237343,3.24672787,3630.5,3630.4,2.08989188]
[1736095237650,3.49468787,3630.5,3630.4,1.088]
[1736095237849,0.66133353,3630.5,3630.4,1.088]
[1736095238245,0.24796,3630.5,3630.4,1.088]
[1736095238756,0.66133353,3630.5,3630.4,1.088]
[1736095239048,0.24797,3630.3,3630.2,7.50417536]
[1736095239254,0.41337353,3630.5,3630.2,7.50417536]
[1736095239550,0.24797,3630.4,3630.2,6.50228348]
[1736095239849,2.1645673,3630.3,3630.2,10.6606163]
[1736095240045,4.28452918,3630.3,3630.2,10.6606163]
[1736095241047,3.2826373,3630.3,3630.2,11.66250818]
[1736095241550,5.86046324,3630.3,3630.2,1.00189188]
[1736095242448,5.44704049,3630.3,3630.2,1.00189188]
[1736095243046,5.19907049,3630.3,3630.2,1.24987188]
[1736095243242,4.32897049,3630.3,3630.2,1.24987188]
[1736095243747,4.74239324,3630.3,3630.2,1.24987188]
[1736095245051,2.16439231,3630.3,3630.2,13.12810739]
[1736095245451,0.9094,3630.6,3630.2,2.2199601]
[1736095245753,0.9094,3630.6,3630.3,0.914]
[1736095245961,0.9094,3630.6,3630.4,1.088]
[1736095246255,0.9094,3630.6,3630.4,1.33596]
[1736095246948,3.24684192,3630.5,3630.4,1.33596]
[1736095247756,3.49480192,3630.5,3630.4,1.088]
[1736095248756,3.49480192,3630.5,3630.4,5.24615357]
[1736095249152,3.24684192,3630.5,3630.4,5.24615357]
[1736095250153,0.41338485,3630.5,3630.4,1.088]
[1736095251148,1.15735,3630.6,3630.4,1.088]
[1736095251350,0.9094,3630.6,3630.4,1.088]
[1736095251547,0.9094,3630.6,3630.5,0.24796]
[1736095252458,1.32278485,3630.6,3630.5,4.58335443]
[1736095259260,1.57073485,3630.6,3630.5,4.33539443]
[1736095260562,0.24796,3630.5,3630.3,5.42339443]
[1736095260859,5.89986742,3630.6,3630.3,5.67136443]
[1736095261063,0.24796,3630.5,3630.3,5.67136443]
[1736095261271,0.24796,3630.5,3630.3,5.42339443]
[1736095261663,0.66134485,3630.5,3630.4,4.33539443]
[1736095264463,4.74250742,3630.5,3630.3,4.33539443]
[1736095264661,0.24796,3630.4,3630.3,4.33539443]
[1736095264971,1.25020638,3630.4,3630.3,4.33539443]
[1736095265967,0.24799,3630.0,3629.9,5.33764081]
[1736095266464,1.25023638,3630.0,3629.9,4.33539443]
[1736095266667,3.06833638,3630.0,3629.9,4.33539443]
[1736095267573,0.24802,3629.7,3629.5,1.25026638]
[1736095267766,0.9493,3629.6,3629.5,1.25026638]
[1736095267967,1.19732,3629.6,3629.5,1.25026638]
[1736095268171,0.9493,3629.6,3629.4,4.33539443]
[1736095268363,2.06613,3629.5,3629.4,4.33539443]
[1736095269271,2.06613,3629.5,3629.3,6.50256933]
[1736095269272,0.24803,3629.4,3629.3,4.33539443]
[1736095270674,0.66156936,3629.4,3629.3,1.00224638]
[1736095271068,0.66156936,3629.4,3629.1,0.24805]
[1736095271368,0.41353936,3629.4,3628.9,0.967]
[1736095271572,0.41353936,3629.4,3629.3,0.24804]
[1736095271773,3.23947796,3629.4,3629.3,0.24804]
[1736095272879,3.05772527,3629.5,3629.4,0.24803]
[1736095274175,3.30575527,3629.5,3629.3,0.24804]
[1736095274373,3.05772527,3629.5,3629.4,0.24803]
[1736095274574,0.24804,3629.3,3629.1,0.24805]
[1736095274772,0.24805,3629.2,3629.0,1.33606]
[1736095275272,0.24806,3629.1,3628.9,1.21506]
[1736095275577,3.2078,3629.3,3628.9,1.21506]
[1736095275772,1.8842,3629.0,3628.9,1.21506]
[1736095275979,3.2078,3629.3,3629.2,0.24805]
[1736095276171,3.45584,3629.3,3629.0,0.24806]
[1736095277071,3.2078,3629.3,3629.0,0.24806]
[1736095277673,0.24805,3629.2,3628.9,2.055]
[1736095277877,0.24806,3629.1,3628.9,1.088]
[1736095278176,0.24806,3629.0,3628.9,1.088]
[1736095278375,0.9595,3629.0,3628.9,1.088]
[1736095278778,1.20756,3629.0,3628.9,1.088]
[1736095280573,0.24805,3629.2,3628.9,1.088]
[1736095280779,0.24806,3629.1,3628.9,1.088]
[1736095280977,0.24806,3629.0,3628.9,1.088]
[1736095282073,0.24806,3629.0,3628.6,0.986]
[1736095282074,0.24809,3628.6,3628.5,3.2078]
[1736095282275,1.9251,3628.9,3628.3,4.33539443]
[1736095282480,0.24808,3628.8,3628.5,0.24809]
[1736095282676,0.9493,3628.9,3628.7,0.24807]
[1736095282978,0.9493,3628.9,3628.8,0.9161]
[1736095284184,1.19737,3628.9,3628.8,0.9161]
[1736095285280,0.9493,3628.9,3628.8,0.9161]
[1736095286678,0.9493,3628.9,3628.8,1.16417]
[1736095287781,4.1673,3629.2,3628.8,3.13787314]
[1736095287782,3.2078,3629.2,3628.8,3.13787314]
[1736095287987,2.40704527,3629.6,3629.2,0.24804]
[1736095288183,2.15902527,3629.6,3629.3,0.9729]
[1736095288391,0.24803,3629.5,3629.4,0.9893]
[1736095290891,1.17291,3629.7,3629.5,0.24803]
[1736095291886,3.2078,3629.8,3629.7,0.24801]
[1736095292394,0.248,3629.9,3629.7,0.24801]
[1736095292783,0.24799,3630.0,3629.4,4.29907314]
[1736095293299,7.29672527,3630.2,3629.4,4.29907314]
[1736095293597,5.1377,3630.2,3629.5,1.088]
[1736095293801,0.24799,3630.0,3629.8,0.248]
[1736095295487,0.248,3629.9,3629.7,0.24801]
[1736095296982,0.24798,3630.1,3629.7,0.24801]
[1736095297193,5.1377,3630.2,3629.7,0.24801]
[1736095297695,0.248,3629.9,3629.7,0.24801]
[1736095299488,0.248,3629.9,3629.5,1.088]
[1736095299489,5.1377,3630.2,3629.5,1.088]
[1736095299690,5.1377,3630.2,3629.8,0.248]
[1736095299691,0.24799,3630.0,3629.8,0.248]
[1736095300289,5.1377,3630.2,3629.7,0.24801]
[1736095300490,0.248,3629.9,3629.7,0.24801]
[1736095301095,0.248,3629.9,3629.6,0.24801]
[1736095304600,2.15902527,3630.1,3629.5,1.088]
[1736095304796,0.248,3629.9,3629.6,0.24801]
[1736095305698,2.15902527,3630.1,3629.5,1.088]
[1736095305899,0.24799,3630.0,3629.7,0.24801]
[1736095306992,2.40701527,3630.0,3629.7,0.24801]
[1736095308198,2.15902527,3630.0,3629.5,1.088]
[1736095308399,0.248,3629.9,3629.6,0.24801]
[1736095308997,0.248,3629.9,3629.8,1.00229082]
[1736095310099,2.15902527,3630.0,3629.8,1.00229082]
[1736095310505,0.248,3629.9,3629.8,1.00229082]
[1736095311406,2.40702527,3629.9,3629.8,1.00229082]
[1736095313001,3.35602527,3629.9,3629.8,1.00229082]
[1736095313405,3.10802527,3629.9,3629.8,1.00229082]
[1736095313911,1.197,3629.9,3629.8,1.00229082]
[1736095315808,2.15902527,3630.0,3629.8,1.25029082]
[1736095316507,2.40701527,3630.0,3629.8,1.25029082]
[1736095316904,0.24799,3630.0,3629.8,1.00229082]
[1736095318213,6.36911609,3630.1,3629.8,1.00229082]
[1736095318413,2.15902527,3630.0,3629.8,1.00229082]
[1736095318709,0.248,3629.9,3629.8,1.00229082]
[1736095319011,0.248,3629.9,3629.6,1.00229082]
[1736095319213,0.248,3629.9,3629.6,1.25030082]
[1736095319814,0.248,3629.9,3629.6,1.00229082]
[1736095320006,0.248,3629.9,3629.7,0.24801]
[1736095320316,0.248,3629.9,3629.6,1.00229082]
[1736095320510,1.00229082,3629.9,3629.5,1.088]
[1736095320710,0.24801,3629.7,3629.5,1.33602]
[1736095320910,0.24801,3629.7,3629.4,6.67371525]
[1736095321107,1.922,3629.6,3629.4,6.42568525]
[1736095321312,1.922,3629.6,3629.5,1.25032082]
[1736095321614,2.15902527,3630.0,3629.5,1.00229082]
[1736095321915,0.9602,3629.9,3629.7,1.25030082]
[1736095322211,1.2082,3629.9,3629.7,1.25030082]
[1736095322711,0.9602,3629.9,3629.7,1.25030082]
[1736095323509,0.9602,3629.9,3629.8,0.248]
[1736095323710,0.9602,3629.9,3629.8,1.1532]
[1736095327420,3.10762527,3630.0,3629.9,0.248]
[1736095327421,2.15902527,3630.0,3629.9,0.248]
[1736095327622,2.15902527,3630.0,3629.9,1.25029082]
[1736095328508,2.15902527,3630.2,3629.9,1.00229082]
[1736095328713,2.15902527,3630.2,3630.1,1.25027082]
[1736095330013,3.16131609,3630.2,3629.8,0.9052]
[1736095330216,0.24799,3630.0,3629.8,5.33768525]
[1736095330424,1.2279,3629.9,3629.8,5.33768525]
[1736095330714,1.8696,3629.9,3629.8,4.33539443]
[1736095330910,2.1176,3629.9,3629.8,4.33539443]
[1736095331806,2.1176,3629.9,3629.5,4.33539443]
[1736095331807,0.24802,3629.6,3629.5,4.33539443]
[1736095332011,1.25031082,3629.6,3629.5,4.33539443]
[1736095333020,0.24801,3629.7,3629.5,4.33539443]
[1736095333226,0.9151,3629.6,3629.4,0.24803]
[1736095334417,4.15457796,3629.6,3629.4,4.58342443]
[1736095335620,4.15457796,3629.6,3629.5,0.24803]
[1736095336922,4.56804967,3629.6,3629.5,0.24803]
[1736095337427,4.56804967,3629.6,3629.4,4.33539443]
[1736095338318,0.9151,3629.6,3629.5,4.33539443]
[1736095338616,0.9151,3629.6,3629.5,4.58342443]
[1736095341121,4.32538441,3629.8,3629.7,0.24801]
[1736095341425,4.32538441,3629.8,3629.5,4.33539443]
[1736095341426,5.30528441,3629.9,3629.8,0.248]
[1736095342827,0.9799,3629.9,3629.8,4.41168336]
[1736095344343,4.22615696,3629.9,3629.8,4.58352606]
[1736095345430,4.63959568,3629.9,3629.8,4.58352606]
[1736095348041,4.22615696,3629.9,3629.8,4.58352606]
[1736095352048,4.47415696,3629.9,3629.8,4.33552606]
[1736095352643,4.88759132,3629.9,3629.8,4.33552606]
[1736095353048,5.89004459,3629.9,3629.8,4.33552606]
[1736095353954,2.39578763,3629.9,3629.5,4.33552606]
[1736095354248,1.25047327,3629.6,3629.5,4.33552606]
[1736095355550,4.49649792,3629.6,3629.5,4.33552606]
[1736095356453,11.43286021,3629.6,3629.5,4.33552606]
[1736095357042,11.43286021,3629.6,3629.0,3.45586]
[1736095357043,19.06857566,3629.6,3629.0,3.2078]
[1736095357254,3.2078,3629.2,3628.9,4.58358606]
[1736095357454,0.24806,3629.0,3628.9,4.58358606]
[1736095357951,1.17986,3629.0,3628.9,4.58358606]
[1736095358454,4.836378,3629.0,3628.6,7.27552606]
[1736095358651,4.836378,3629.0,3628.8,0.24807]
[1736095359050,4.588318,3629.0,3628.6,5.23262606]
[1736095359353,0.24807,3628.9,3628.7,0.24808]
[1736095359749,4.17480037,3629.0,3628.5,4.33552606]
[1736095359750,0.24809,3628.6,3628.5,4.33552606]
[1736095359947,3.45589,3628.6,3628.5,4.33552606]
[1736095360950,5.36819277,3628.6,3628.4,0.2481]
[1736095361252,5.36819277,3628.6,3628.2,0.24811]
[1736095361455,5.36819277,3628.6,3628.4,0.2481]
[1736095362055,3.2078,3628.6,3628.4,0.2481]
[1736095362356,3.2078,3628.6,3628.5,0.24809]
[1736095363650,2.16039277,3628.9,3628.3,1.088]
[1736095363859,2.16039277,3628.9,3628.8,0.24807]
[1736095364960,2.16039277,3628.9,3628.8,2.47032204]
[1736095365555,5.36819277,3629.2,3628.8,2.22225204]
[1736095365760,5.36819277,3629.2,3629.1,0.24805]
[1736095365961,5.36819277,3629.2,3629.0,0.24806]
[1736095366363,6.35299277,3629.2,3629.0,0.24806]
[1736095366861,3.14519277,3629.2,3629.1,0.24805]
[1736095367062,0.9848,3629.2,3629.1,0.24805]
[1736095368367,0.9848,3629.2,3629.0,0.24805]
[1736095368965,0.9848,3629.2,3628.9,1.088]
[1736095369263,0.9848,3629.2,3629.1,0.24805]
[1736095371061,2.16039277,3629.5,3628.9,1.088]
[1736095371267,2.16039277,3629.5,3629.3,0.24804]
[1736095371465,3.14019277,3629.5,3629.2,0.24804]
[1736095371664,0.9798,3629.5,3628.9,6.51805204]
[1736095371865,0.9798,3629.5,3629.4,0.24803]
[1736095372763,0.9798,3629.5,3629.1,0.9637]
[1736095372969,0.9798,3629.5,3629.3,0.24803]
[1736095373465,0.9798,3629.5,3629.4,0.24803]
[1736095373667,0.9798,3629.5,3629.1,0.9637]
[1736095373862,0.9798,3629.5,3629.3,0.24804]
[1736095375263,3.14019277,3629.5,3629.3,0.24804]
[1736095376267,3.38822277,3629.5,3629.3,0.24804]
[1736095376465,3.14019277,3629.5,3629.3,0.24804]
[1736095377069,5.36244481,3629.5,3628.9,3.2078]
[1736095377264,0.24806,3629.1,3628.9,3.2078]
[1736095377466,1.7886,3629.0,3628.9,3.2078]
[1736095378870,1.7886,3629.0,3628.8,1.33607]
[1736095380674,1.7886,3629.0,3628.9,0.24807]
[1736095380873,2.40843277,3629.3,3628.8,1.088]
[1736095381073,4.27043277,3629.3,3629.0,0.24806]
[1736095381378,4.02239277,3629.3,3629.0,0.24806]
[1736095381780,1.862,3629.3,3629.0,0.24806]
[1736095382276,2.11004,3629.3,3629.0,0.24806]
[1736095383873,2.11004,3629.3,3628.8,1.088]
[1736095383874,1.862,3629.3,3628.8,1.088]
[1736095384174,2.11004,3629.3,3629.0,0.24805]
[1736095388980,3.11276882,3629.3,3629.0,0.24805]
[1736095389474,0.8963,3629.2,3629.0,0.24805]
[1736095390378,0.8963,3629.2,3628.8,2.09072882]
[1736095390583,1.14435,3629.2,3628.9,0.24806]
[1736095392076,1.00272882,3629.1,3628.9,0.24806]
[1736095393978,1.00272882,3629.1,3628.7,8.63132606]
[1736095394380,1.00272882,3629.1,3628.9,0.24806]
[1736095395185,1.00272882,3629.1,3629.0,0.24806]
[1736095395586,1.00272882,3629.1,3628.9,0.24806]
[1736095396085,3.16312159,3629.1,3628.9,0.24806]
[1736095396980,3.41117159,3629.1,3628.8,0.24807]
[1736095397187,3.16312159,3629.1,3629.0,0.24806]
[1736095397390,3.41117159,3629.1,3628.8,4.58359606]
[1736095397686,3.41117159,3629.1,3628.9,0.24807]
[1736095397888,3.16312159,3629.1,3628.9,0.24807]
[1736095398593,3.16312159,3629.1,3629.0,0.24806]
[1736095398888,4.24572919,3629.1,3629.0,0.24806]
[1736095400290,4.65924912,3629.1,3629.0,0.24806]
[1736095401282,4.90730912,3629.1,3628.9,0.24806]
[1736095402289,4.90730912,3629.1,3629.0,0.24806]
[1736095402592,4.65924912,3629.1,3629.0,0.24806]
[1736095403089,4.90729912,3629.1,3629.0,0.24806]
[1736095403291,1.66429875,3629.1,3629.0,0.24806]
[1736095404791,1.25077882,3629.1,3629.0,0.24806]
[1736095406386,1.00272882,3629.1,3629.0,0.24806]
[1736095406584,1.41624875,3629.1,3629.0,0.24806]
[1736095408089,0.41351993,3629.1,3629.0,0.24806]
[1736095410295,0.41351993,3629.1,3629.0,1.25078882]
[1736095410690,3.66128354,3629.1,3629.0,5.41640039]
[1736095412209,3.66128354,3629.1,3629.0,11.91896972]
[1736095412698,3.66128354,3629.1,3629.0,10.6681809]
[1736095413092,4.66401236,3629.1,3629.0,10.6681809]
[1736095413294,4.91206236,3629.1,3629.0,10.6681809]
[1736095413495,4.49854243,3629.1,3629.0,10.6681809]
[1736095414698,1.66429875,3629.1,3629.0,4.33812196]
[1736095416397,1.25077882,3629.1,3629.0,4.33812196]
[1736095417801,1.66429875,3629.1,3629.0,4.33812196]
[1736095418802,1.41624875,3629.1,3629.0,4.33812196]
[1736095419104,4.73752042,3629.1,3629.0,4.58618196]
[1736095420907,3.6642532,3629.1,3629.0,10.91712908]
[1736095422502,3.25073327,3629.1,3629.0,10.91712908]
[1736095423211,3.25073327,3629.1,3629.0,10.66906908]
[1736095423417,3.49878327,3629.1,3629.0,10.66906908]
[1736095423811,4.98557042,3629.1,3629.0,4.16649975]
[1736095425416,1.96512882,3629.2,3628.9,6.50256933]
[1736095425417,0.24806,3629.0,3628.9,4.339502]
[1736095425617,1.25078882,3629.0,3628.9,4.339502]
[1736095426118,1.00272882,3629.0,3628.9,4.339502]
[1736095426818,5.7508776,3629.0,3628.9,4.339502]
[1736095428018,5.9989376,3629.0,3628.9,4.339502]
[1736095429519,5.9989376,3629.0,3628.8,6.50256933]
[1736095429520,1.66430875,3629.0,3628.8,4.339502]
[1736095429816,0.9729,3628.9,3628.8,4.339502]
[1736095430219,0.9729,3628.9,3628.8,4.587572]
[1736095431019,5.72102549,3628.9,3628.8,4.587572]
[1736095434015,5.72102549,3628.9,3628.8,4.339502]
[1736095434216,5.72102549,3628.9,3628.8,4.587572]
[1736095439919,1.38641993,3628.9,3628.8,4.41402684]
[1736095443827,4.59421993,3628.9,3628.8,4.16595684]
[1736095444016,5.84501875,3628.9,3628.8,2.27995684]
[1736095445815,12.75676656,3628.9,3628.8,2.27995684]
[1736095446014,16.6466543,3628.9,3628.3,0.24811]
[1736095446219,1.00272882,3628.4,3628.3,0.24811]
[1736095446725,1.93902882,3628.4,3628.3,0.24811]
[1736095447525,5.59981144,3628.4,3628.3,0.24811]
[1736095447729,0.24811,3628.2,3628.1,4.58595148]
[1736095447927,1.25083882,3628.2,3628.1,4.33783148]
[1736095448527,2.16033882,3628.2,3628.1,4.33783148]
[1736095448728,2.16033882,3628.2,3628.0,4.58596148]
[1736095449124,2.16033882,3628.2,3628.0,4.33783148]
[1736095450430,2.16033882,3628.2,3627.9,1.19973]
[1736095450431,2.16418514,3628.1,3627.9,5.53756148]
[1736095450631,1.00272882,3628.0,3627.9,5.28943148]
[1736095450831,1.97382882,3628.0,3627.9,5.28943148]
[1736095451225,1.97382882,3628.0,3627.9,5.53756148]
[1736095451629,1.97382882,3628.0,3627.9,1.19973]
[1736095453227,1.97382882,3628.0,3627.8,4.33783148]
[1736095453429,0.24813,3627.9,3627.8,4.33783148]
[1736095454336,2.22195882,3628.0,3627.8,4.33783148]
[1736095454530,2.16418514,3627.9,3627.8,4.58597148]
[1736095454732,2.16418514,3627.9,3627.8,0.24814]
[1736095457428,0.24814,3627.8,3627.6,3.2078]
[1736095457635,1.25087882,3627.7,3627.5,0.24816]
[1736095458132,0.9261,3627.6,3627.5,0.24816]
[1736095458334,0.9261,3627.6,3627.3,8.2966603]
[1736095458634,0.9261,3627.6,3627.4,0.24816]
[1736095459931,1.17426,3627.6,3627.3,3.95882882]
[1736095460132,0.9261,3627.6,3627.4,0.24817]
[1736095462237,0.9261,3627.6,3627.3,3.95882882]
[1736095463229,0.9261,3627.6,3627.4,0.24816]
[1736095464834,0.9261,3627.6,3627.5,0.24816]
[1736095465438,0.9261,3627.6,3627.4,0.24816]
[1736095465743,0.9261,3627.6,3627.5,0.24816]
[1736095467538,0.9261,3627.6,3627.4,0.24816]
[1736095469146,1.17426,3627.6,3627.3,3.28239882]
[1736095469445,1.00272882,3627.5,3627.3,3.28239882]
[1736095469642,1.00272882,3627.5,3627.3,2.27967]
[1736095469841,1.25088882,3627.5,3627.3,2.0315]
[1736095470042,1.25088882,3627.5,3627.3,2.27967]
[1736095470242,1.25088882,3627.5,3627.3,2.0315]
[1736095470642,1.00272882,3627.5,3627.3,2.0315]
[1736095470838,4.21052882,3627.5,3627.0,4.33783148]
[1736095471043,1.25091882,3627.1,3627.0,4.33783148]
[1736095472348,1.25091882,3627.1,3626.8,1.33521]
[1736095472551,0.9321,3627.0,3626.8,1.33521]
[1736095472740,0.9321,3627.0,3626.9,0.2482]
[1736095472941,5.62014514,3627.5,3627.2,0.24818]
[1736095473145,6.62287396,3627.5,3627.3,1.8942]
[1736095474447,3.16691396,3627.5,3627.3,2.14237]
[1736095474751,1.25088882,3627.5,3627.3,2.14237]
[1736095474944,1.00272882,3627.5,3627.3,2.14237]
[1736095475251,1.25088882,3627.5,3627.3,2.14237]
[1736095475747,0.24817,3627.4,3627.2,0.24818]
[1736095476049,1.95622882,3627.3,3627.2,0.24818]
[1736095476949,2.20440882,3627.3,3626.9,2.89742882]
[1736095477153,0.9798,3627.2,3627.0,0.2482]
[1736095477352,1.00272882,3627.1,3627.0,0.2482]
[1736095478154,1.00272882,3627.1,3626.9,2.89742882]
[1736095478454,1.00272882,3627.1,3626.9,3.14562882]
[1736095478649,1.00272882,3627.1,3626.9,2.89742882]
[1736095478860,1.25091882,3627.1,3626.9,0.9128]
[1736095479350,1.00272882,3627.1,3626.8,5.29752882]
[1736095479550,0.2482,3627.0,3626.8,2.08972882]
[1736095480153,0.2482,3627.0,3626.8,1.087]
[1736095480651,1.00272882,3627.1,3626.8,1.087]
[1736095480851,1.00272882,3627.1,3626.9,0.2482]
[1736095481341,1.00272882,3627.1,3626.8,2.08972882]
[1736095481547,0.9535,3627.3,3627.2,0.24818]
[1736095481745,0.9535,3627.3,3627.2,1.25090882]
[1736095482347,0.9535,3627.3,3627.2,1.00272882]
[1736095482556,0.9535,3627.3,3627.2,1.25090882]
[1736095483356,0.9535,3627.3,3627.2,1.00272882]
[1736095484155,0.9535,3627.3,3627.2,2.92362882]
[1736095484457,0.9535,3627.3,3627.2,3.17180882]
[1736095485152,1.95622882,3627.3,3627.0,1.00272882]
[1736095485358,2.20440882,3627.3,3627.0,1.25091882]
[1736095485657,0.9294,3627.2,3627.0,1.00272882]
[1736095485863,0.9294,3627.2,3627.1,0.24819]
[1736095487158,0.9294,3627.2,3627.0,1.25091882]
[1736095487758,1.17759,3627.2,3626.9,2.133]
[1736095487959,1.00272882,3627.1,3626.9,2.133]
[1736095488456,1.00272882,3627.1,3626.9,1.8848]
[1736095488654,1.00272882,3627.1,3627.0,0.2482]
[1736095489961,1.00272882,3627.1,3626.9,0.9343]
[1736095490162,1.25092882,3627.1,3626.9,0.9343]
[1736095490458,0.2482,3627.0,3626.7,0.9843]